[Event "FIDE WYCC Open U18 2023"]
[Site "Montesilvano"]
[Date "2023.11.24"]
[Round "11.27"]
[White "Krallis, Christos"]
[Black "Prisacaru, Stefan-Emilian"]
[Result "1/2-1/2"]
[ECO "D11"]
[WhiteElo "2339"]
[BlackElo "2148"]
[Annotator "RC"]
[PlyCount "65"]
[EventDate "2023.11.13"]
[EventType "swiss"]
[EventCountry "ITA"]
[SourceTitle "playchess.com"]
[Source "ChessBase"]
[SourceQuality "1"]
[TimeControl "40/5400+30:1800+30"]

1. Nf3 d5 2. e3 Nf6 3. c4 c6 4. d4 Bg4 5. Nc3 e6 6. h3 Bxf3 7. Qxf3 Nbd7 8. cxd5 exd5 9. Bd3 Bd6 10. Bd2 Qe7 11. O-O-O O-O-O 12. Rhe1 Rhe8 13. e4 dxe4 14. Nxe4 Nxe4 15. Rxe4 Qf6 16. Rxe8 Rxe8 17. Bf5 Kc7 18. Qd3 Nb6 19. Kb1 g6 20. Be4 Qe6 21. Bf3 Qc4 22. Ba5 Qxd3+ 23. Rxd3 Kb8 24. Bxb6 axb6 25. Re3 Re7 26. Kc2 Kc7 27. a4 h6 28. Kd3 Kd8 29. Kc4 Bf4 30. Rc3 Re1 31. d5 Kc7 32. dxc6 bxc6 33. Kd4 1/2-1/2

[Event "FIDE WYCC Open U18 2023"]
[Site "Montesilvano"]
[Date "2023.11.24"]
[Round "11.28"]
[White "Bicer, Atakan Mert"]
[Black "Bermudez Ureba, Juan Diego"]
[Result "1-0"]
[ECO "C78"]
[WhiteElo "2318"]
[BlackElo "2186"]
[Annotator "RC"]
[PlyCount "63"]
[EventDate "2023.11.13"]
[EventType "swiss"]
[EventCountry "ITA"]
[SourceTitle "playchess.com"]
[Source "ChessBase"]
[SourceQuality "1"]
[TimeControl "40/5400+30:1800+30"]

1. e4 e5 2. Nf3 Nc6 3. Bb5 a6 4. Ba4 Nf6 5. O-O Bc5 6. c3 b5 7. Bb3 d6 8. d4 Bb6 9. h3 Bb7 10. Re1 O-O 11. a4 Re8 12. d5 Na5 13. Ba2 c6 14. Bg5 cxd5 15. Bxd5 Bxd5 16. Bxf6 Qxf6 17. Qxd5 Qe6 18. Nfd2 Qxd5 19. exd5 bxa4 20. Rxa4 Bc7 21. Na3 Nb7 22. Rc4 Rec8 23. Nc2 a5 24. Ra1 Kf8 25. b4 Ke7 26. Nb3 Kd7 27. bxa5 Nxa5 28. Nxa5 Bxa5 29. Rca4 Rc5 30. c4 Kc7 31. Nb4 Kb6 32. Nd3 1-0

[Event "FIDE WYCC Open U18 2023"]
[Site "Montesilvano"]
[Date "2023.11.24"]
[Round "11.29"]
[White "Sahakyan, Aleks"]
[Black "Pegno, Mattia"]
[Result "1-0"]
[ECO "C64"]
[WhiteElo "2303"]
[BlackElo "2155"]
[Annotator "RC"]
[PlyCount "81"]
[EventDate "2023.11.13"]
[EventType "swiss"]
[EventCountry "ITA"]
[SourceTitle "playchess.com"]
[Source "ChessBase"]
[SourceQuality "1"]
[TimeControl "40/5400+30:1800+30"]

1. e4 e5 2. Nf3 Nc6 3. Bb5 Bc5 4. O-O Nd4 5. Nxd4 Bxd4 6. c3 Bb6 7. Ba4 Nf6 8. d4 O-O 9. dxe5 Nxe4 10. Bc2 d5 11. exd6 Nxd6 12. Qh5 g6 13. Qf3 Re8 14. Bf4 Bd7 15. Nd2 Bc6 16. Qg3 Qd7 17. Rad1 Qe7 18. a4 Rad8 19. h4 Qe6 20. Bb3 Bd5 21. Bxd5 Qxd5 22. Qg5 Qxg5 23. Bxg5 Rc8 24. Bf4 Re2 25. b3 Rd8 26. Nc4 Rc2 27. Rd3 Bc5 28. Nd2 a5 29. Ne4 Bb6 30. Nf6+ Kf8 31. Bh6+ Ke7 32. Nd5+ Kd7 33. Nxb6+ cxb6 34. Rfd1 Kc6 35. Bf4 Rb2 36. c4 h6 37. Rxd6+ Rxd6 38. Rxd6+ Kc5 39. Rd5+ Kc6 40. Rb5 Rb1+ 41. Kh2 1-0

[Event "FIDE WYCC Open U18 2023"]
[Site "Montesilvano"]
[Date "2023.11.24"]
[Round "11.30"]
[White "Kristoferitsch, Daniel"]
[Black "Qalichava, Akaki"]
[Result "1-0"]
[ECO "E32"]
[WhiteElo "2270"]
[BlackElo "2141"]
[Annotator "RC"]
[PlyCount "49"]
[EventDate "2023.11.13"]
[EventType "swiss"]
[EventCountry "ITA"]
[SourceTitle "playchess.com"]
[Source "ChessBase"]
[SourceQuality "1"]
[TimeControl "40/5400+30:1800+30"]

1. d4 Nf6 2. c4 e6 3. Nc3 Bb4 4. Qc2 O-O 5. e4 d6 6. e5 dxe5 7. dxe5 Nfd7 8. Nf3 Nc6 9. Bf4 f6 10. a3 fxe5 11. Be3 Bc5 12. O-O-O Qe7 13. Ne4 Bxe3+ 14. fxe3 Nc5 15. h4 Nxe4 16. Qxe4 Bd7 17. Bd3 g6 18. h5 Be8 19. Rh3 Rd8 20. Rg3 Rd7 21. hxg6 Bxg6 22. Nh4 Rf7 23. Nxg6 hxg6 24. Qxg6+ Rg7 25. Qh7+ 1-0

[Event "FIDE WYCC Open U18 2023"]
[Site "Montesilvano"]
[Date "2023.11.24"]
[Round "11.31"]
[White "Dreelinck, Adriaan"]
[Black "Jovanovski, Teodor"]
[Result "1/2-1/2"]
[ECO "E03"]
[WhiteElo "2264"]
[BlackElo "2140"]
[Annotator "RC"]
[PlyCount "82"]
[EventDate "2023.11.13"]
[EventType "swiss"]
[EventCountry "ITA"]
[SourceTitle "playchess.com"]
[Source "ChessBase"]
[SourceQuality "1"]
[TimeControl "40/5400+30:1800+30"]

1. d4 e6 2. c4 Nf6 3. g3 d5 4. Bg2 dxc4 5. Nf3 Nbd7 6. Qa4 a6 7. Qxc4 b5 8. Qc6 Rb8 9. Bf4 Nd5 10. Ne5 Nxf4 11. gxf4 Bb4+ 12. Nc3 Bb7 13. Qxd7+ Qxd7 14. Nxd7 Kxd7 15. Bxb7 Bxc3+ 16. bxc3 Rxb7 17. Kd2 c5 18. Rab1 Rc8 19. a4 cxd4 20. cxd4 Rbc7 21. Rb2 Rc4 22. axb5 Rxd4+ 23. Ke3 Rd5 24. Kf3 axb5 25. Ra1 Rc7 26. e4 Rh5 27. Rd1+ Kc6 28. e5 Kb6 29. Kg3 Rc3+ 30. f3 Rf5 31. Rd8 g5 32. Rb8+ Kc7 33. R2xb5 gxf4+ 34. Kh4 Rc5 35. Rxc5+ Kxb8 36. Kg4 Kb7 37. Rc4 h5+ 38. Kh4 Kb6 39. h3 Kb5 40. Rc5+ Kb4 41. Rc4+ Kxc4 1/2-1/2

[Event "FIDE WYCC Open U18 2023"]
[Site "Montesilvano"]
[Date "2023.11.24"]
[Round "11.32"]
[White "Harshad S"]
[Black "Miazhynski, Michael"]
[Result "1-0"]
[ECO "C41"]
[WhiteElo "2263"]
[BlackElo "2109"]
[Annotator "RC"]
[PlyCount "77"]
[EventDate "2023.11.13"]
[EventType "swiss"]
[EventCountry "ITA"]
[SourceTitle "playchess.com"]
[Source "ChessBase"]
[SourceQuality "1"]
[TimeControl "40/5400+30:1800+30"]

1. e4 d6 2. d4 Nf6 3. Nc3 e5 4. Nf3 Nbd7 5. Rg1 c6 6. g4 h6 7. h4 g6 8. Be3 Be7 9. dxe5 Nxe5 10. Nxe5 dxe5 11. Qxd8+ Bxd8 12. f3 Be6 13. O-O-O Bb6 14. Kd2 O-O-O+ 15. Bd3 Rd7 16. Na4 Bxe3+ 17. Kxe3 b6 18. b3 Kc7 19. Nb2 b5 20. Be2 Rxd1 21. Rxd1 Rd8 22. Rc1 a6 23. c4 Kb6 24. a4 Nd7 25. b4 Rg8 26. Ra1 f5 27. axb5 axb5 28. cxb5 cxb5 29. Ra5 fxg4 30. fxg4 Rc8 31. Bxb5 Rc3+ 32. Bd3 Kc7 33. Ra6 Nb6 34. Rxb6 Rxd3+ 35. Nxd3 Kxb6 36. g5 hxg5 37. hxg5 Bf7 38. Nxe5 Be8 39. Nc4+ 1-0